bitfinex-derivatives/quotes_SOLF0:USTF0_20241230
["timestamp","ask_amount","ask_price","bid_price","bid_amount"]
[1735520659667,2.6075,192.13,192.06,2.6083]
[1735520659967,24.22315821,192.19,192.05,3.4]
[1735520660168,1.5567,192.18,192.05,3.4]
[1735520660767,1.5567,192.18,192.06,20.82315821]
[1735520661369,1.5567,192.18,192.13,2.6074]
[1735520662373,1.4665,192.21,192.11,3.4]
[1735520663268,2.6065,192.2,192.12,2.6075]
[1735520663473,1.4665,192.21,192.1,3.4]
[1735520663973,4.073,192.21,192.14,2.6072]
[1735520664170,3.083,192.27,192.15,3.4]
[1735520664369,3.083,192.27,192.16,3.4]
[1735520664370,4.5496,192.27,192.16,3.4]
[1735520664570,2.6061,192.23,192.16,3.4]
[1735520665174,2.6063,192.22,192.17,2.6068]
[1735520665571,4.5496,192.27,192.16,3.4]
[1735520665771,4.5496,192.27,192.13,2.6073]
[1735520667075,4.5496,192.27,192.12,3.4]
[1735520667271,4.5496,192.27,192.14,2.6073]
[1735520668075,4.5496,192.27,192.12,3.4]
[1735520668470,4.5496,192.27,192.14,20.82315821]
[1735520668973,4.5496,192.27,192.12,4.44101603]
[1735520669166,4.5496,192.27,192.18,2.6067]
[1735520669576,2.6064,192.21,192.12,1.04101603]
[1735520669776,2.6064,192.21,192.15,2.6071]
[1735520669966,4.5496,192.27,192.15,2.6071]
[1735520670170,2.6064,192.21,192.16,2.607]
[1735520670869,4.5496,192.27,192.13,3.4]
[1735520672277,2.6062,192.23,192.18,2.6067]
[1735520672471,17.57259541,192.27,192.18,2.6067]
[1735520672666,17.57259541,192.27,192.14,13.02299541]
[1735520672875,13.02299541,192.24,192.15,3.38]
[1735520674174,17.57259541,192.27,192.15,3.38]
[1735520674769,2.6061,192.23,192.19,2.6066]
[1735520674977,17.57259541,192.27,192.19,2.6066]
[1735520675372,17.57259541,192.27,192.15,3.38]
[1735520675778,17.57259541,192.27,192.14,13.02299541]
[1735520675980,2.6065,192.2,192.14,16.40299541]
[1735520676279,13.02299541,192.24,192.14,3.38]
[1735520676572,2.6065,192.2,192.15,2.6071]
[1735520676777,13.02299541,192.24,192.15,2.6071]
[1735520676977,2.6066,192.19,192.15,2.6071]
[1735520677174,2.6066,192.19,192.14,3.38]
[1735520677175,13.02299541,192.21,192.12,1.04101603]
[1735520677381,13.02299541,192.21,192.12,4.42101603]
[1735520677572,2.607,192.16,192.12,7.02851603]
[1735520677770,16.40299541,192.21,192.12,1.04101603]
[1735520677970,16.40299541,192.21,192.08,16.40299541]
[1735520677971,13.02299541,192.18,192.08,16.40299541]
[1735520678271,1.472,192.17,192.08,16.40299541]
[1735520678471,2.6073,192.14,192.08,16.40299541]
[1735520678882,2.6073,192.14,192.09,2.608]
[1735520679475,2.6075,192.13,192.09,2.608]
[1735520679876,1.472,192.17,192.08,16.40299541]
[1735520680581,2.6071,192.16,192.11,2.6077]
[1735520680781,1.472,192.17,192.11,2.6077]
[1735520681584,2.6072,192.15,192.11,2.6077]
[1735520682678,2.6073,192.14,192.09,5.9879]
[1735520682884,1.472,192.17,192.09,3.38]
[1735520684486,2.9401,192.17,192.07,13.02299541]
[1735520684784,2.6076,192.13,192.08,2.6081]
[1735520684985,2.9401,192.17,192.08,2.6081]
[1735520685175,2.6078,192.11,192.04,13.02299541]
[1735520685380,13.02299541,192.15,192.06,2.6084]
[1735520686580,2.6079,192.1,192.06,2.6084]
[1735520687387,2.6077,192.11,192.06,2.6084]
[1735520688892,2.6077,192.12,192.05,2.6085]
[1735520689080,13.02299541,192.15,192.05,2.6085]
[1735520689985,2.6079,192.1,192.05,2.6085]
[1735520690386,2.6079,192.1,192.05,2.6084]
[1735520690582,2.6079,192.1,192.06,4.14845248]
[1735520690786,2.6079,192.1,192.05,2.6084]
[1735520691083,2.6079,192.1,192.06,4.14831954]
[1735520691287,2.6077,192.11,192.07,2.6081]
[1735520692792,2.6077,192.11,192.08,4.15786422]
[1735520693090,13.02299541,192.15,192.0,2.75961074]
[1735520693296,13.02299541,192.12,192.01,4.15902671]
[1735520693481,13.02299541,192.12,192.02,4.15902671]
[1735520693686,4.9941,192.16,192.03,4.15902671]
[1735520693687,13.02299541,192.09,192.03,4.15902671]
[1735520693887,1.4722,192.08,192.04,4.15902671]
[1735520694090,1.4722,192.08,192.0,2.75961074]
[1735520694289,3.0331,192.08,192.01,4.16573796]
[1735520694494,3.0331,192.08,192.02,4.16573796]
[1735520694495,4.6489,192.08,192.02,4.16573796]
[1735520694692,2.6088,192.04,191.99,2.6093]
[1735520694988,4.6489,192.08,192.0,4.16710234]
[1735520694989,13.02299541,192.06,192.0,4.16710234]
[1735520695192,13.02299541,192.06,192.01,4.16710234]
[1735520695492,13.02299541,192.06,191.96,3.38]
[1735520695493,2.609,192.02,191.96,3.38]
[1735520695695,13.02299541,192.06,191.97,4.16719878]
[1735520695995,13.02299541,192.06,191.98,4.16719878]
[1735520696292,13.02299541,192.06,191.94,16.40299541]
[1735520696491,16.40299541,192.06,191.95,4.16762577]
[1735520696681,16.40299541,192.06,191.96,4.16762577]
[1735520696885,16.40299541,192.06,191.97,4.16762577]
[1735520697091,4.6489,192.08,191.98,4.16762577]
[1735520697092,2.6083,192.07,191.98,4.16762577]
[1735520697290,4.6489,192.08,191.99,4.16762577]
[1735520697493,4.6489,192.08,191.97,13.02299541]
[1735520697694,2.6085,192.06,192.01,2.6091]
[1735520698691,2.6083,192.07,192.02,2.6088]
[1735520698887,1.4722,192.08,192.0,13.02299541]
[1735520699083,1.4722,192.08,192.01,7.53910923]
[1735520699289,1.4722,192.08,192.02,4.15910923]
[1735520699592,1.4722,192.08,192.01,3.38]
[1735520699792,1.4722,192.08,192.05,2.6084]
[1735520700192,1.4722,192.08,192.01,3.38]
[1735520700395,1.4722,192.08,192.04,2.6086]
[1735520700889,13.02299541,192.15,192.03,13.02299541]
[1735520701097,1.5235,192.16,192.04,4.1577846]
[1735520701290,2.6072,192.15,192.05,4.1577846]
[1735520701495,2.6072,192.15,192.06,3.32]
[1735520701695,1.5235,192.16,192.06,16.34299541]
[1735520701995,1.5235,192.16,192.07,4.15595757]
[1735520702194,1.5235,192.16,192.08,4.15595757]
[1735520702490,13.02299541,192.2,192.06,16.34299541]
[1735520702491,2.6067,192.19,192.09,13.02299541]
[1735520702691,13.02299541,192.2,192.09,13.02299541]
[1735520702892,13.02299541,192.17,192.1,3.32]
[1735520703292,2.6073,192.14,192.1,3.32]
[1735520703905,13.02299541,192.17,192.1,3.32]
[1735520704201,13.02299541,192.17,192.05,3.32]
[1735520704503,13.02299541,192.14,192.05,3.32]
[1735520704703,2.6077,192.11,192.05,3.32]
[1735520705406,2.6077,192.11,192.06,2.6083]
[1735520705807,2.6079,192.1,192.06,2.6083]
[1735520706001,13.02299541,192.14,192.02,3.1887]
[1735520706304,13.02299541,192.11,192.04,2.6086]
[1735520707009,13.02299541,192.08,192.0,3.32]
[1735520707396,13.02299541,192.05,191.96,3.32]
[1735520707602,2.609,192.02,191.96,5.9297]
[1735520708003,1.5758,192.04,191.96,3.32]
[1735520708306,2.6092,192.0,191.96,3.32]
[1735520709405,2.6092,192.0,191.94,2.6099]
[1735520709602,13.02299541,192.02,191.91,97.20721235]
[1735520709803,13.02299541,192.02,191.92,3.32]
[1735520710007,1.5983,192.01,191.92,3.32]
[1735520710209,2.6096,191.98,191.92,5.9302]
[1735520710807,2.6096,191.98,191.92,2.6102]
[1735520711395,1.5983,192.01,191.91,84.18421694]
[1735520711606,4.7929,192.03,191.91,84.18421694]
[1735520711607,21.62705451,192.08,191.94,13.02299541]
[1735520711808,13.02299541,192.06,191.94,16.34299541]
[1735520712410,4.7012,192.07,191.94,3.32]
[1735520712612,13.02299541,192.03,191.94,3.32]
[1735520713206,13.02299541,192.03,191.88,13.02299541]
[1735520713505,13.02299541,192.0,191.88,13.02299541]
[1735520713706,13.02299541,192.0,191.91,2.6104]
[1735520714006,13.02299541,192.0,191.89,3.32]
[1735520714213,2.6099,191.96,191.9,2.6105]
[1735520714405,3.32,192.06,191.89,3.32]
[1735520714601,13.02299541,192.02,191.89,3.32]
[1735520715512,2.6093,191.99,191.93,2.61]
[1735520715809,13.02299541,192.02,191.89,3.32]
[1735520716210,2.6093,191.99,191.93,2.61]
[1735520716512,13.02299541,192.02,191.93,2.61]
[1735520716706,13.02299541,192.02,191.9,2.6104]
[1735520716902,13.02299541,192.02,191.89,3.32]
[1735520717408,13.02299541,192.02,191.91,13.02299541]
[1735520717607,13.02299541,192.05,191.91,13.02299541]
[1735520718308,2.609,192.02,191.97,2.6096]
[1735520718509,13.02299541,192.05,191.96,3.32]
[1735520718908,2.609,192.02,191.96,5.9296]
[1735520719306,13.02299541,192.05,191.94,3.32]
[1735520719513,2.6091,192.01,191.95,2.6098]
[1735520720010,13.02299541,192.05,191.95,2.6098]
[1735520720410,13.02299541,192.05,191.94,3.32]
[1735520720615,2.609,192.02,191.94,5.93]
[1735520720909,13.02299541,192.05,191.94,5.93]
[1735520721416,2.6094,191.99,191.94,5.93]
[1735520721611,13.02299541,192.02,191.94,5.93]
[1735520721811,13.02299541,192.02,191.94,3.32]
[1735520722619,2.6095,191.99,191.94,5.93]
[1735520724321,2.6099,191.96,191.9,2.6105]
[1735520724519,13.02299541,192.02,191.91,3.32]
[1735520724715,16.34299541,192.02,191.91,3.32]
[1735520724916,2.6097,191.97,191.91,5.9303]
[1735520725721,2.6098,191.96,191.91,5.9303]
[1735520725928,13.02299541,191.99,191.91,5.9303]
[1735520726118,1.6158,191.98,191.91,5.9303]
[1735520726721,2.6098,191.96,191.91,5.9303]
[1735520727116,1.6158,191.98,191.91,3.32]
[1735520727320,2.6096,191.97,191.91,3.32]
[1735520727921,2.6096,191.97,191.92,2.6103]
[1735520728925,1.6158,191.98,191.92,2.6103]
[1735520728926,2.6097,191.96,191.92,2.6103]
[1735520732028,1.6158,191.98,191.91,3.32]
[1735520732227,13.02299541,192.05,191.91,16.34299541]
[1735520732527,13.02299541,192.02,191.91,13.02299541]
[1735520732727,13.02299541,192.02,191.92,3.32]
[1735520733327,13.02299541,192.02,191.93,2.6101]
[1735520733919,13.02299541,192.02,191.94,2.6099]
[1735520734124,13.02299541,192.02,191.92,3.32]
[1735520734621,2.6095,191.99,191.95,2.6099]
[1735520734823,13.02299541,192.02,191.92,3.32]
[1735520735328,13.02299541,191.99,191.92,3.32]
[1735520735725,2.6098,191.96,191.91,2.6103]
[1735520737129,13.02299541,191.99,191.9,3.32]
[1735520737429,13.02299541,192.02,191.9,3.32]
[1735520737630,1.5854,192.06,191.9,16.34299541]
[1735520737931,1.5854,192.06,191.94,13.02299541]
[1735520738132,1.5854,192.06,191.98,2.6094]
[1735520738133,2.6086,192.05,191.98,2.6094]
[1735520738333,2.6086,192.05,191.95,3.32]
[1735520738631,2.6086,192.05,191.96,4.14829018]
[1735520738831,2.6086,192.05,191.95,3.32]
[1735520739028,2.6086,192.05,192.0,2.6091]
[1735520743134,1.5854,192.06,192.0,2.6091]
[1735520743434,2.6087,192.04,192.0,2.6091]
[1735520745830,1.5854,192.06,192.0,3.32]
[1735520746134,21.72520035,192.09,192.0,3.32]
[1735520746332,21.72520035,192.09,192.06,2.6083]
[1735520746636,21.72520035,192.09,192.05,3.32]
[1735520746930,21.72520035,192.09,192.07,2.6082]
[1735520747132,1.5363,192.11,192.06,3.32]
[1735520747637,2.6081,192.09,192.06,3.32]
[1735520748838,2.6079,192.1,192.06,3.32]
[1735520753534,2.6079,192.1,192.06,5.9284]
[1735520753730,4.144,192.11,192.06,5.9284]
[1735520754333,8.34693378,192.1,192.06,5.9284]
[1735520755540,10.95483378,192.1,192.06,5.9284]
[1735520756340,10.95483378,192.1,192.06,2.6084]
[1735520758833,10.95483378,192.1,192.05,2.6085]
[1735520759547,1.5363,192.11,192.03,8.34693378]
[1735520759843,8.34693378,192.13,192.07,8.34693378]
[1735520760042,8.34693378,192.13,192.07,11.62693378]
[1735520760941,8.34693378,192.13,192.1,2.6078]
[1735520761438,8.34693378,192.15,192.07,11.62693378]
[1735520761640,8.34693378,192.17,192.09,8.34693378]
[1735520762045,8.34693378,192.17,192.13,2.6074]
[1735520762641,3.1666,192.18,192.13,2.6074]
[1735520762946,8.34693378,192.17,192.13,2.6074]
[1735520763538,21.72520035,192.26,192.15,8.34693378]
[1735520763748,8.34693378,192.23,192.17,8.34693378]
[1735520764044,8.34693378,192.23,192.18,3.28]
[1735520764247,8.34693378,192.23,192.2,2.6064]
[1735520764440,9.86913378,192.25,192.18,3.28]
[1735520764942,9.86913378,192.25,192.2,2.6065]
[1735520766340,13.02219153,192.24,192.09,1.4797]
[1735520766543,13.02219153,192.24,192.11,13.02219153]
[1735520767045,2.6065,192.21,192.15,2.607]
[1735520767247,13.02219153,192.24,192.16,3.28]
[1735520767546,2.6063,192.22,192.16,3.28]
[1735520767849,13.02219153,192.24,192.13,2.6073]
[1735520768038,13.02219153,192.24,192.14,3.28]
[1735520768243,2.6068,192.18,192.14,3.28]
[1735520768745,2.6069,192.17,192.14,3.28]
[1735520768945,13.02219153,192.21,192.14,3.28]
[1735520769543,2.6067,192.19,192.14,3.28]
[1735520769945,13.02219153,192.21,192.14,3.28]
[1735520770149,1.5222,192.25,192.15,13.02219153]
[1735520770346,1.5222,192.25,192.18,13.02219153]
[1735520770548,4.1281,192.25,192.2,2.6065]
[1735520770749,1.5222,192.25,192.19,3.28]
[1735520771551,1.5222,192.25,192.2,2.6064]
[1735520771750,1.5222,192.25,192.19,3.28]
[1735520772246,13.02219153,192.29,192.23,2.6061]
[1735520772449,13.02219153,192.29,192.19,3.28]
[1735520772655,4.1052,192.3,192.26,2.6056]
[1735520772856,1.5001,192.3,192.24,3.28]
[1735520773250,1.5001,192.3,192.2,3.28]
[1735520773451,2.6055,192.27,192.21,2.6063]
[1735520774948,2.6055,192.27,192.2,3.28]
[1735520775158,1.5001,192.3,192.2,3.28]
[1735520775455,1.5001,192.3,192.21,13.02219153]
[1735520775855,4.1053,192.3,192.21,13.02219153]
[1735520776059,1.5001,192.3,192.21,13.02219153]
[1735520776755,1.5001,192.3,192.22,3.28]
[1735520776952,2.6056,192.27,192.22,3.28]
[1735520777454,1.5001,192.3,192.22,3.28]
[1735520778558,13.02219153,192.33,192.22,3.28]
[1735520778861,2.9809,192.31,192.22,3.28]
[1735520779250,2.6055,192.28,192.23,2.6061]
[1735520779657,2.9809,192.31,192.22,3.28]
[1735520779857,2.6052,192.3,192.25,2.6058]
[1735520780359,2.9809,192.31,192.28,2.6053]
[1735520780562,1.4985,192.31,192.28,2.6053]
[1735520781456,2.6045,192.35,192.3,2.6051]
[1735520782458,17.73729153,192.37,192.27,3.28]
[1735520783156,2.6046,192.34,192.27,3.28]
[1735520783457,13.02219153,192.34,192.27,3.28]
[1735520783655,13.02219153,192.34,192.21,13.02219153]
[1735520783960,13.02219153,192.31,192.23,3.28]
[1735520784259,13.02219153,192.31,192.22,2.6061]
[1735520784854,2.6057,192.26,192.21,5.8863]
[1735520785055,13.02219153,192.31,192.21,3.28]
[1735520785255,13.02219153,192.31,192.2,3.28]
[1735520785562,2.6056,192.27,192.23,2.6061]
[1735520786853,16.30219153,192.31,192.21,3.28]
[1735520787055,13.02219153,192.28,192.2,2.6065]
[1735520787257,4.5693,192.27,192.2,2.6065]
[1735520787550,4.5693,192.27,192.12,1.5818]
[1735520787551,13.02219153,192.25,192.17,2.6068]
[1735520787759,13.02219153,192.25,192.16,3.28]
[1735520787959,2.6061,192.23,192.18,2.6067]
[1735520788157,4.5693,192.27,192.16,3.28]
[1735520788454,7.1749,192.27,192.16,3.28]
[1735520788660,4.5693,192.27,192.17,13.02219153]
[1735520789060,2.6057,192.26,192.2,2.6065]
[1735520789556,2.6059,192.24,192.19,2.6065]
[1735520789760,4.5693,192.27,192.17,13.02219153]
[1735520790356,2.6059,192.25,192.2,2.6064]
[1735520790556,4.5693,192.27,192.18,3.24]
[1735520790856,4.5693,192.27,192.16,3.24]
[1735520791061,2.6062,192.23,192.17,2.6068]
[1735520791660,2.6062,192.23,192.18,2.6067]
[1735520791862,2.6058,192.25,192.16,3.24]
[1735520792163,4.5693,192.27,192.16,3.24]
[1735520792359,2.6057,192.26,192.16,3.24]
[1735520792558,1.5511,192.27,192.17,13.02219153]
[1735520792860,1.5511,192.27,192.22,2.6062]
[1735520793058,1.5511,192.27,192.23,3.24]
[1735520793462,2.6057,192.26,192.23,3.24]
[1735520793662,1.5511,192.27,192.23,3.24]
[1735520794166,4.1567,192.27,192.23,3.24]
[1735520795760,13.02219153,192.34,192.23,3.24]
[1735520795961,14.48649153,192.34,192.23,16.26219153]
[1735520796169,1.4643,192.34,192.23,16.26219153]
[1735520797264,2.6047,192.33,192.28,2.6053]
[1735520797465,1.4643,192.34,192.28,3.24]
[1735520798467,4.069,192.34,192.29,2.6052]
[1735520800166,2.6047,192.33,192.29,2.6052]
[1735520801561,14.48649153,192.34,192.25,3.24]
[1735520801756,13.02219153,192.31,192.22,3.24]
[1735520802360,13.02219153,192.31,192.21,3.24]
[1735520802562,13.02219153,192.31,192.2,3.24]
[1735520804861,13.02219153,192.31,192.2,5.8465]
[1735520805766,34.74739188,192.31,192.2,5.8465]
[1735520806462,34.74739188,192.31,192.2,2.6065]
[1735520806864,34.74739188,192.31,192.18,3.24]
[1735520807065,2.606,192.24,192.18,5.8466]
[1735520807772,2.606,192.24,192.18,3.24]
[1735520807968,2.606,192.24,192.19,2.6066]
[1735520811666,13.02219153,192.31,192.18,2.6067]
[1735520811974,13.02219153,192.28,192.18,3.24]
[1735520812175,3.0943,192.27,192.18,3.24]
[1735520812679,1.5223,192.26,192.18,3.24]
[1735520812975,1.5223,192.26,192.17,5.8469]
[1735520814374,8.33514566,192.24,192.17,14.18204566]
[1735520814575,2.6063,192.22,192.17,14.18204566]
[1735520816574,2.6065,192.2,192.15,2.6071]
[1735520816772,2.6065,192.2,192.16,11.57514566]
[1735520817475,2.6064,192.21,192.16,14.18204566]
[1735520817672,1.5223,192.26,192.16,11.57514566]
[1735520817872,4.128,192.26,192.21,2.6062]
[1735520818074,1.5223,192.26,192.22,8.33514566]
[1735520819576,1.5223,192.26,192.23,2.606]
[1735520820774,21.72520035,192.33,192.24,8.33514566]
[1735520820977,21.72520035,192.33,192.28,8.33514566]
[1735520821175,21.72520035,192.33,192.3,8.33514566]
[1735520821371,21.72520035,192.33,192.3,11.49514566]
[1735520821978,21.72520035,192.33,192.32,8.33514566]
[1735520822576,2.6039,192.39,192.34,2.6045]
[1735520822773,21.72520035,192.41,192.37,8.33514566]
[1735520823179,21.72520035,192.41,192.39,8.33514566]
[1735520823676,21.72520035,192.41,192.39,10.93904566]
[1735520823876,21.72520035,192.41,192.4,3.16]
[1735520824080,57.9338676,192.42,192.4,3.16]
[1735520824275,17.07840036,192.48,192.43,2.6033]
[1735520824475,17.07840036,192.48,192.44,12.9877538]
[1735520824683,17.07840036,192.48,192.45,3.16]
[1735520824982,17.07840036,192.48,192.46,2.6029]
[1735520825179,17.07840036,192.48,192.45,3.16]
[1735520825780,70.9216214,192.59,192.47,12.9877538]
[1735520825987,1.537,192.58,192.47,12.9877538]
[1735520827580,1.537,192.58,192.48,3.16]
[1735520828078,2.6019,192.55,192.48,3.16]
[1735520828280,1.5802,192.56,192.48,3.16]
[1735520828589,14.5679538,192.56,192.44,12.9877538]
[1735520828883,14.5679538,192.56,192.45,3.16]
[1735520829583,17.1695538,192.56,192.48,2.6026]
[1735520829787,14.5679538,192.56,192.45,3.16]
[1735520831983,2.6023,192.51,192.45,3.16]
[1735520832380,14.5679538,192.56,192.45,3.16]
[1735520832587,2.6021,192.53,192.45,5.7631]
[1735520833192,14.5679538,192.56,192.45,3.16]
[1735520833390,2.6019,192.55,192.45,3.16]
[1735520833592,14.5679538,192.56,192.45,3.16]
[1735520834091,2.6019,192.55,192.45,3.16]
[1735520834595,2.6019,192.54,192.47,2.6028]
[1735520834793,1.5802,192.56,192.47,12.9877538]
[1735520834996,1.537,192.58,192.5,12.9877538]
[1735520835291,1.537,192.58,192.51,3.16]
[1735520835493,3.1101,192.64,192.53,12.9877538]
[1735520836385,5.7106,192.64,192.57,2.6013]
[1735520836988,5.7106,192.64,192.56,3.16]
[1735520836989,2.6009,192.61,192.56,3.16]
[1735520837187,16.0978538,192.64,192.56,3.16]
[1735520837392,16.0978538,192.64,192.53,3.16]
[1735520837603,19.2578538,192.64,192.53,3.16]
[1735520838293,2.6013,192.59,192.53,3.16]
[1735520838689,19.2578538,192.64,192.53,3.16]
[1735520838891,1.5053,192.64,192.56,12.9877538]
[1735520839296,1.5162,192.67,192.59,12.9877538]
[1735520839600,1.5162,192.67,192.6,3.16]
[1735520839987,4.1163,192.67,192.61,2.6009]
[1735520841097,2.6004,192.65,192.6,3.16]
[1735520841499,1.5162,192.67,192.6,3.16]
[1735520841700,4.1164,192.67,192.6,5.761]
[1735520841896,4.1164,192.67,192.6,3.16]
[1735520842396,5.6359,192.69,192.6,3.16]
[1735520842600,1.535,192.69,192.62,12.9877538]
[1735520843005,1.535,192.69,192.64,2.6004]
[1735520843407,1.535,192.69,192.65,3.16]
[1735520844107,1.535,192.69,192.59,12.9877538]
[1735520844308,1.535,192.69,192.6,3.16]
[1735520844910,2.6005,192.65,192.6,3.16]
[1735520845409,14.5227538,192.69,192.6,3.16]
[1735520845608,14.5227538,192.69,192.56,12.9877538]
[1735520845911,12.9877538,192.66,192.53,12.9877538]
[1735520846107,2.6012,192.59,192.54,3.16]
[1735520846712,2.6012,192.59,192.54,5.7619]
[1735520847010,1.5538,192.65,192.54,3.16]
[1735520847512,1.5538,192.65,192.56,12.9877538]
[1735520847701,1.535,192.69,192.59,12.9877538]
[1735520847908,1.535,192.69,192.59,16.1477538]
[1735520848211,1.535,192.69,192.62,2.6008]
[1735520848407,1.535,192.69,192.62,12.9877538]
[1735520849204,4.0647,192.71,192.62,12.9877538]
[1735520850313,4.0647,192.71,192.61,20.73428724]
[1735520850514,2.5994,192.73,192.67,2.6001]
[1735520850713,3.193,192.75,192.65,3.22]
[1735520850912,2.599,192.76,192.67,20.73428724]
[1735520851417,1.5585,192.8,192.67,20.73428724]
[1735520851611,1.4945,192.79,192.67,20.73428724]
[1735520852011,2.5992,192.75,192.69,2.5998]
[1735520852306,3.22,192.76,192.66,3.22]
[1735520852510,3.22,192.76,192.64,3.22]
[1735520852511,1.5123,192.74,192.64,3.22]
[1735520853301,2.5997,192.7,192.64,5.8204]
[1735520853809,1.5123,192.74,192.64,3.22]
[1735520854006,1.5123,192.74,192.65,2.6003]
[1735520854203,1.5123,192.74,192.64,3.22]
[1735520854405,1.5123,192.74,192.64,23.95428724]
[1735520854614,2.5992,192.74,192.64,23.95428724]
[1735520855417,2.5992,192.74,192.69,2.5998]
[1735520855616,20.73428724,192.78,192.63,3.22]
[1735520856910,2.5995,192.72,192.67,2.6001]
[1735520857417,20.73428724,192.78,192.65,2.6003]
[1735520857610,20.73428724,192.78,192.63,3.22]
[1735520858709,20.73428724,192.78,192.65,2.6004]
[1735520859120,2.5996,192.72,192.66,2.6002]
[1735520859416,20.73428724,192.78,192.66,2.6002]
[1735520859620,20.73428724,192.78,192.63,3.22]
[1735520860319,2.5998,192.7,192.64,2.6005]
[1735520860523,20.73428724,192.78,192.63,3.22]
[1735520860714,20.73428724,192.75,192.59,3.22]
[1735520860915,2.6003,192.66,192.6,2.6009]
[1735520861111,3.22,192.74,192.57,2.96719536]
[1735520861112,20.73428724,192.72,192.57,2.96719536]
[1735520861313,2.6009,192.62,192.57,6.18719536]
[1735520861617,3.22,192.68,192.57,3.22]
[1735520862017,2.6007,192.63,192.58,2.6013]
[1735520862412,2.6007,192.63,192.57,3.22]
[1735520862610,2.6007,192.63,192.57,5.8215]
[1735520862920,3.22,192.68,192.57,5.8215]
[1735520863121,2.6008,192.62,192.57,5.8215]
[1735520864121,3.22,192.68,192.58,2.6012]
[1735520865317,3.22,192.68,192.57,3.22]
[1735520866321,2.6009,192.62,192.57,5.8215]
[1735520867619,3.22,192.68,192.57,3.22]
[1735520867620,2.6009,192.61,192.57,3.22]
[1735520868218,2.6011,192.6,192.55,23.33598724]
[1735520868412,3.22,192.68,192.54,3.22]
[1735520869022,20.73428724,192.66,192.52,3.22]
[1735520869227,20.73428724,192.66,192.52,5.822]
[1735520870217,2.6014,192.58,192.52,15.57615982]
[1735520870417,12.97415982,192.65,192.52,18.79615982]
[1735520871217,12.97415982,192.65,192.52,16.19415982]
[1735520871422,12.97415982,192.65,192.53,2.602]
[1735520871719,12.97415982,192.65,192.52,16.19415982]
[1735520872026,2.6015,192.57,192.52,18.79625982]
[1735520872724,2.6015,192.57,192.52,16.19415982]
[1735520872924,2.6015,192.57,192.53,2.602]
[1735520873122,12.97415982,192.65,192.53,2.602]
[1735520873324,2.6014,192.58,192.53,2.602]
[1735520873718,12.97415982,192.65,192.52,16.19415982]
[1735520873719,2.6017,192.56,192.52,16.19415982]
[1735520874019,12.97415982,192.62,192.49,12.97415982]
[1735520874216,12.97415982,192.59,192.48,3.22]
[1735520874422,12.97415982,192.59,192.49,4.10785285]
[1735520874626,12.97415982,192.59,192.47,3.22]
[1735520874926,12.97415982,192.59,192.46,12.97415982]
[1735520874927,3.22,192.58,192.46,16.19415982]
[1735520875325,2.6021,192.53,192.44,3.22]
[1735520875526,4.6195,192.52,192.44,3.22]
[1735520875919,2.6026,192.49,192.43,12.97415982]
[1735520876128,2.6026,192.49,192.43,16.19415982]
[1735520876425,4.6195,192.52,192.39,82.8435926]
[1735520876426,2.6029,192.47,192.39,103.6209136]
[1735520876727,4.6195,192.52,192.41,3.22]
[1735520876925,4.6195,192.52,192.39,5.8238]
[1735520877125,4.6195,192.52,192.39,3.22]
[1735520878028,4.6195,192.52,192.4,2.6037]
[1735520878826,25.396821,192.52,192.39,2.6039]
[1735520879129,2.6034,192.44,192.37,3.22]
[1735520879432,7.8395,192.52,192.39,20.777321]
[1735520879929,7.8395,192.52,192.45,2.6031]
[1735520880133,7.8395,192.52,192.42,3.22]